fUSD/lending_fUSD_20260508
["ID","MTS","AMOUNT","RATE_DAILY","PERIOD"]
[421795935,1778170245000,-331.314243,0.00033,120]
[421795938,1778170245000,-503.0,0.00033093,8]
[421795939,1778170245000,-155.0,0.00033168,30]
[421795940,1778170245000,-383.0,0.00033168,30]
[421795941,1778170245000,-475.0,0.00033168,30]
[421795943,1778170245000,-153.0,0.00033168,30]
[421795930,1778170245000,-175.99913827,0.00033,120]
[421795924,1778170245000,-1881.48563273,0.00033,120]
[421795942,1778170245000,-158.0,0.00033168,30]
[421795926,1778170245000,-185.2344615,0.00033,120]
[421795929,1778170245000,-217.6084978,0.00033,120]
[421795908,1778170245000,-292.0,0.00032168,30]
[421795906,1778170245000,-158.0,0.00032168,30]
[421795911,1778170245000,-271.0,0.00032168,30]
[421795913,1778170245000,-500.0,0.00032192,120]
[421795912,1778170245000,-180.0,0.00032183,8]
[421795914,1778170245000,-469.32,0.000322,7]
[421795915,1778170245000,-2097.39,0.000322,14]
[421795905,1778170245000,-475.0,0.00032168,30]
[421795919,1778170245000,-152.0,0.00032347,3]
[421795918,1778170245000,-264.26,0.000323,7]
[421795920,1778170245000,-503.0,0.00032349,7]
[421795917,1778170245000,-490.0,0.00032219,14]
[421795922,1778170245000,-566.86,0.000324,7]
[421795921,1778170245000,-16353.47,0.000324,7]
[421795916,1778170245000,-654.0,0.0003221,5]
[421795923,1778170245000,-150.0,0.00032562,2]
[421795961,1778170246000,-199.98690457,0.000339,120]
[421795962,1778170246000,-175.99913827,0.000339,120]
[421795968,1778170246000,-214.63993676,0.00034,7]
[421795966,1778170246000,-1811.79166467,0.00034,120]
[421795972,1778170246000,-3226.8516791,0.00034018,2]
[421795967,1778170246000,-16353.47,0.00034,7]
[421795969,1778170246000,-207.9261601,0.00034,7]
[421795971,1778170246000,-41994.7246779,0.00034018,2]
[421795965,1778170246000,-331.314243,0.000339,120]
[421795973,1778170246000,-118314.9066945,0.00034018,2]
[421795974,1778170246000,-1443.793812,0.00034018,2]
[421795978,1778170246000,-155.0,0.00034168,30]
[421795976,1778170246000,-550.06996714,0.00034077,2]
[421795975,1778170246000,-550.06996714,0.00034068,2]
[421795970,1778170246000,-675.46,0.00034017,120]
[421795964,1778170246000,-251.88996915,0.000339,120]
[421795955,1778170246000,-191.216409,0.00033856,60]
[421795960,1778170246000,-185.2344615,0.000339,120]
[421795977,1778170246000,-17446.78239325,0.00034156,2]
[421795944,1778170246000,-292.0,0.00033168,30]
[421795946,1778170246000,-152.0,0.00033168,30]
[421795945,1778170246000,-155.0,0.00033168,30]
[421795947,1778170246000,-271.0,0.00033168,30]
[421795951,1778170246000,-415.0,0.00033759,2]
[421795949,1778170246000,-221.14,0.000335,2]
[421795950,1778170246000,-874.0,0.00033595,5]
[421795948,1778170246000,-500.0,0.0003326,120]
[421795953,1778170246000,-250.0,0.00033848,7]
[421795958,1778170246000,-1881.48563273,0.000339,120]
[421795957,1778170246000,-203.3868328,0.00033856,60]
[421795954,1778170246000,-300.4101434,0.00033856,60]
[421795956,1778170246000,-261.2811879,0.00033856,60]
[421795959,1778170246000,-1149.34355082,0.000339,120]
[421795963,1778170246000,-251.0446015,0.000339,120]
[421795952,1778170246000,-503.0,0.00033838,9]
[421795979,1778170246000,-383.0,0.00034168,30]
[421795981,1778170246000,-158.0,0.00034168,30]
[421796001,1778170246000,-550.06996714,0.00034599,2]
[421795999,1778170246000,-168.19,0.00034555,30]
[421796003,1778170246000,-2000.0,0.00034651,120]
[421796005,1778170246000,-500.0,0.00034651,120]
[421796008,1778170246000,-151.0,0.0003488,7]
[421796010,1778170246000,-151.0,0.0003488,7]
[421796002,1778170246000,-500.0,0.00034651,120]
[421796006,1778170246000,-1013.03,0.000348,120]
[421796007,1778170246000,-207269.19007257,0.0003488,120]
[421796011,1778170246000,-151.0,0.0003488,7]
[421796012,1778170246000,-173.787512,0.0003488,7]
[421796013,1778170246000,-163.0481,0.0003488,7]
[421796014,1778170246000,-163.0481,0.0003488,7]
[421795980,1778170246000,-475.0,0.00034168,30]
[421796004,1778170246000,-500.0,0.00034651,120]
[421795997,1778170246000,-3626.0,0.00034515,2]
[421796009,1778170246000,-151.0,0.0003488,7]
[421796000,1778170246000,-503.0,0.00034582,10]
[421795996,1778170246000,-6044.0,0.00034515,2]
[421795987,1778170246000,-654.0,0.00034182,7]
[421795982,1778170246000,-153.0,0.00034168,30]
[421795983,1778170246000,-292.0,0.00034168,30]
[421795985,1778170246000,-152.0,0.00034168,30]
[421795984,1778170246000,-155.0,0.00034168,30]
[421795988,1778170246000,-150.0,0.0003419,2]
[421795990,1778170246000,-550.06996714,0.00034248,2]
[421795986,1778170246000,-271.0,0.00034168,30]
[421795995,1778170246000,-203.16649843,0.000345,7]
[421795992,1778170246000,-200.0,0.00034346,2]
[421795993,1778170246000,-566.86,0.000344,7]
[421795994,1778170246000,-11092.74051436,0.000345,120]
[421795991,1778170246000,-500.0,0.00034329,120]
[421795998,1778170246000,-490.0,0.00034521,30]
[421795989,1778170246000,-490.0,0.00034233,30]
[421796039,1778170247000,-200.81384893,0.00035,120]
[421796037,1778170247000,-1881.48563273,0.00035,120]
[421796036,1778170247000,-3423.53683651,0.00034999,2]
[421796033,1778170247000,-150.0,0.00034989,7]
[421796035,1778170247000,-150.0,0.00034989,7]
[421796034,1778170247000,-150.0,0.00034989,7]
[421796038,1778170247000,-1149.34355082,0.00035,120]
[421796042,1778170247000,-1647.3098948,0.00035,14]
[421796040,1778170247000,-199.98690457,0.00035,120]
[421796044,1778170247000,-331.314243,0.00035,120]
[421796041,1778170247000,-251.0446015,0.00035,120]
[421796045,1778170247000,-42778.38133951,0.00035,60]
[421796046,1778170247000,-19692.0591726,0.00035,30]
[421796049,1778170247000,-44466.17,0.00035,15]
[421796043,1778170247000,-251.88996915,0.00035,120]
[421796032,1778170247000,-150.0,0.00034989,7]
[421796050,1778170247000,-650.09026543,0.00035,10]
[421796031,1778170247000,-150.0,0.00034989,7]
[421796016,1778170247000,-163.0481,0.0003488,7]
[421796017,1778170247000,-151.0,0.0003488,7]
[421796015,1778170247000,-163.0481,0.0003488,7]
[421796018,1778170247000,-331.199706,0.0003488,7]
[421796020,1778170247000,-331.199706,0.0003488,7]
[421796021,1778170247000,-331.199706,0.0003488,7]
[421796023,1778170247000,-151.0,0.0003488,7]
[421796019,1778170247000,-331.199706,0.0003488,7]
[421796024,1778170247000,-151.0,0.0003488,7]
[421796022,1778170247000,-151.0,0.0003488,7]
[421796025,1778170247000,-151.0,0.0003488,7]
[421796028,1778170247000,-150.0,0.00034989,7]
[421796029,1778170247000,-150.0,0.00034989,7]
[421796027,1778170247000,-150.0,0.00034989,7]
[421796026,1778170247000,-218.55047728,0.00034947,2]
[421796030,1778170247000,-150.0,0.00034989,7]
[421796052,1778170247000,-16353.47,0.00035,7]
[421796063,1778170247000,-200.0,0.00035192,2]
[421796054,1778170247000,-155.0,0.00035168,30]
[421796072,1778170247000,-900.0,0.00035406,2]
[421796071,1778170247000,-900.0,0.00035406,2]
[421796075,1778170247000,-900.0,0.00035406,2]
[421796073,1778170247000,-900.0,0.00035406,2]
[421796074,1778170247000,-900.0,0.00035406,2]
[421796076,1778170247000,-900.0,0.00035406,2]
[421796078,1778170247000,-900.0,0.00035406,2]
[421796081,1778170247000,-150.0,0.00035475,7]
[421796079,1778170247000,-664.0,0.00035406,2]
[421796077,1778170247000,-900.0,0.00035406,2]
[421796080,1778170247000,-150.0,0.00035456,7]
[421796082,1778170247000,-150.0,0.00035544,7]
[421796084,1778170247000,-250.0,0.00035567,2]
[421796085,1778170247000,-250.0,0.00035567,2]
[421796047,1778170247000,-2179.94706239,0.00035,7]
[421796070,1778170247000,-900.0,0.00035406,2]
[421796069,1778170247000,-161.0,0.0003538,120]
[421796086,1778170247000,-250.0,0.00035567,2]
[421796064,1778170247000,-1500.0,0.000352,7]
[421796051,1778170247000,-207.9261601,0.00035,120]
[421796048,1778170247000,-200.0,0.00035,120]
[421796053,1778170247000,-150.0,0.00035145,7]
[421796055,1778170247000,-383.0,0.00035168,30]
[421796067,1778170247000,-150.0,0.000353,7]
[421796058,1778170247000,-153.0,0.00035168,30]
[421796057,1778170247000,-158.0,0.00035168,30]
[421796056,1778170247000,-475.0,0.00035168,30]
[421796062,1778170247000,-271.0,0.00035168,30]
[421796060,1778170247000,-155.0,0.00035168,30]
[421796061,1778170247000,-152.0,0.00035168,30]
[421796083,1778170247000,-250.0,0.00035567,2]
[421796066,1778170247000,-2500.0,0.000353,14]
[421796068,1778170247000,-503.0,0.00035327,10]
[421796065,1778170247000,-167.54,0.00035293,2]
[421796059,1778170247000,-292.0,0.00035168,30]
[421796106,1778170248000,-500.0,0.00035616,5]
[421796105,1778170248000,-221.44,0.00035616,120]
[421796108,1778170248000,-500.0,0.00035658,120]
[421796107,1778170248000,-500.0,0.00035616,7]
[421796109,1778170248000,-500.0,0.00035658,120]
[421796110,1778170248000,-450.0,0.00035658,120]
[421796115,1778170248000,-691.0,0.00035658,120]
[421796113,1778170248000,-750.0,0.00035658,120]
[421796117,1778170248000,-550.06996714,0.0003569,2]
[421796114,1778170248000,-750.0,0.00035658,120]
[421796116,1778170248000,-550.06996714,0.00035665,2]
[421796112,1778170248000,-382.0,0.00035658,120]
[421796104,1778170248000,-150.0,0.00035616,60]
[421796111,1778170248000,-450.0,0.00035658,120]
[421796102,1778170248000,-200.0,0.00035616,120]
[421796091,1778170248000,-550.0,0.00035581,2]
[421796101,1778170248000,-150.0,0.00035611,7]
[421796118,1778170248000,-566.86,0.000357,7]
[421796088,1778170248000,-250.0,0.00035567,2]
[421796089,1778170248000,-250.0,0.00035567,2]
[421796087,1778170248000,-250.0,0.00035567,2]
[421796090,1778170248000,-294.0,0.00035567,2]
[421796092,1778170248000,-550.0,0.00035581,2]
[421796103,1778170248000,-311.0,0.00035616,120]
[421796094,1778170248000,-550.0,0.00035581,2]
[421796095,1778170248000,-550.0,0.00035581,2]
[421796093,1778170248000,-550.0,0.00035581,2]
[421796097,1778170248000,-550.0,0.00035581,2]
[421796098,1778170248000,-550.0,0.00035581,2]
[421796100,1778170248000,-181.0,0.00035581,2]
[421796099,1778170248000,-550.0,0.00035581,2]
[421796096,1778170248000,-550.0,0.00035581,2]
[421796120,1778170248000,-150.0,0.00035816,7]
[421796124,1778170248000,-150.0,0.00035818,2]
[421796119,1778170248000,-150.0,0.00035767,7]
[421796143,1778170248000,-150.0,0.00036078,7]
[421796144,1778170248000,-150.0,0.0003609,7]
[421796138,1778170248000,-752.57839717,0.00036,120]
[421796140,1778170248000,-16353.47,0.00036,7]
[421796145,1778170248000,-2000.0,0.00036092,120]
[421796146,1778170248000,-25000.0,0.00036095,10]
[421796141,1778170248000,-503.0,0.00036072,11]
[421796147,1778170248000,-150.0,0.000361,7]
[421796148,1778170248000,-469.32,0.000361,30]
[421796149,1778170248000,-2097.39,0.000361,14]
[421796150,1778170248000,-207.9261601,0.000361,120]
[421796153,1778170248000,-234.0,0.00036164,2]
[421796121,1778170248000,-550.06996714,0.00035818,2]
[421796154,1778170248000,-156.0,0.00036164,2]
[421796151,1778170248000,-25000.0,0.00036111,10]
[421796142,1778170248000,-550.06996714,0.00036076,2]
[421796152,1778170248000,-654.0,0.00036153,30]
[421796136,1778170248000,-251.88996915,0.00036,120]
[421796139,1778170248000,-157.0,0.00036,120]
[421796123,1778170248000,-150.0,0.00035818,2]
[421796126,1778170248000,-150.0,0.00035899,2]
[421796125,1778170248000,-178.0,0.00035818,2]
[421796127,1778170248000,-150.0,0.00035922,7]
[421796128,1778170248000,-159.0,0.00035953,7]
[421796129,1778170248000,-150.0,0.00035961,7]
[421796122,1778170248000,-150.0,0.00035818,2]
[421796132,1778170248000,-1881.48563273,0.00036,120]
[421796133,1778170248000,-1149.34355082,0.00036,120]
[421796131,1778170248000,-150.0,0.00035961,7]
[421796134,1778170248000,-199.98690457,0.00036,120]
[421796135,1778170248000,-251.0446015,0.00036,120]
[421796137,1778170248000,-331.314243,0.00036,120]
[421796130,1778170248000,-150.0,0.00035961,7]
[421796173,1778170249000,-2505.7,0.00036264,10]
[421796175,1778170249000,-2505.7,0.00036342,10]
[421796174,1778170249000,-5000.0,0.00036299,10]
[421796177,1778170249000,-1000.0,0.00036374,60]
[421796179,1778170249000,-150.0,0.00036389,7]
[421796195,1778170249000,-264.26,0.000364,30]
[421796183,1778170249000,-150.0,0.00036397,2]
[421796194,1778170249000,-2306.0,0.00036399,11]
[421796185,1778170249000,-150.0,0.00036397,2]
[421796187,1778170249000,-150.0,0.00036397,2]
[421796189,1778170249000,-150.0,0.00036397,2]
[421796169,1778170249000,-150.0,0.00036233,7]
[421796181,1778170249000,-1000.0,0.00036395,60]
[421796170,1778170249000,-490.0,0.00036247,30]
[421796163,1778170249000,-271.0,0.00036168,30]
[421796171,1778170249000,-500.0,0.00036251,120]
[421796172,1778170249000,-432.370528,0.00036251,120]
[421796166,1778170249000,-4539.35359587,0.00036192,2]
[421796168,1778170249000,-1102.7,0.00036202,10]
[421796165,1778170249000,-5000.0,0.00036191,10]
[421796164,1778170249000,-3643.99,0.0003619,10]
[421796160,1778170249000,-292.0,0.00036168,30]
[421796159,1778170249000,-153.0,0.00036168,30]
[421796162,1778170249000,-152.0,0.00036168,30]
[421796161,1778170249000,-155.0,0.00036168,30]
[421796158,1778170249000,-158.0,0.00036168,30]
[421796156,1778170249000,-383.0,0.00036168,30]
[421796157,1778170249000,-475.0,0.00036168,30]
[421796155,1778170249000,-155.0,0.00036168,30]
[421796192,1778170249000,-225.0,0.00036397,2]
[421796198,1778170249000,-5000.0,0.000364,10]
[421796167,1778170249000,-2506.7,0.00036197,10]
[421796200,1778170249000,-17446.78239325,0.00036422,2]
[421796206,1778170249000,-150.0,0.00036447,7]
[421796242,1778170249000,-167.0,0.00036738,2]
[421796241,1778170249000,-5000.0,0.00036737,10]
[421796238,1778170249000,-2500.0,0.00036706,10]
[421796237,1778170249000,-25000.0,0.00036701,10]
[421796240,1778170249000,-2527.74,0.00036709,10]
[421796236,1778170249000,-150.0,0.000367,7]
[421796235,1778170249000,-5000.0,0.00036694,10]
[421796234,1778170249000,-875.62203,0.0003668,81]
[421796233,1778170249000,-875.62204,0.0003668,81]
[421796232,1778170249000,-875.62204,0.0003668,81]
[421796230,1778170249000,-150.0,0.00036655,7]
[421796228,1778170249000,-1000.0,0.00036592,60]
[421796229,1778170249000,-5000.0,0.00036629,10]
[421796223,1778170249000,-150.0,0.00036544,7]
[421796231,1778170249000,-875.62203,0.0003668,81]
[421796224,1778170249000,-2506.71,0.0003655,10]
[421796227,1778170249000,-5000.0,0.00036586,10]
[421796202,1778170249000,-685.66249107,0.00036438,5]
[421796204,1778170249000,-25000.0,0.00036439,10]
[421796210,1778170249000,-5000.0,0.00036467,10]
[421796212,1778170249000,-25000.0,0.00036509,10]
[421796214,1778170249000,-5000.0,0.00036522,10]
[421796216,1778170249000,-154.72909,0.00036522,7]
[421796220,1778170249000,-154.72909,0.00036522,7]
[421796208,1778170249000,-2511.84,0.00036456,10]
[421796221,1778170249000,-154.72909,0.00036522,7]
[421796226,1778170249000,-5000.0,0.00036577,10]
[421796222,1778170249000,-2500.0,0.00036543,10]
[421796225,1778170249000,-2511.85,0.00036554,10]
[421796218,1778170249000,-154.72909,0.00036522,7]
[421796265,1778170250000,-150.0,0.00036933,30]
[421796261,1778170250000,-300.0,0.000369,13]
[421796262,1778170250000,-16353.47,0.000369,7]
[421796264,1778170250000,-161.0,0.0003693,60]
[421796263,1778170250000,-566.86,0.000369,7]
[421796268,1778170250000,-150.0,0.00036933,7]
[421796267,1778170250000,-150.0,0.00036933,7]
[421796271,1778170250000,-5000.0,0.00036946,10]
[421796270,1778170250000,-150.0,0.00036933,7]
[421796272,1778170250000,-5000.0,0.00036957,10]
[421796269,1778170250000,-150.0,0.00036933,7]
[421796260,1778170250000,-1824.44845358,0.000369,120]
[421796266,1778170250000,-150.0,0.00036933,7]
[421796255,1778170250000,-151.0,0.0003684,14]
[421796244,1778170250000,-243.0,0.00036738,2]
[421796257,1778170250000,-5000.0,0.00036844,10]
[421796258,1778170250000,-700.0,0.00036849,4]
[421796254,1778170250000,-2527.73,0.00036828,10]
[421796253,1778170250000,-503.0,0.00036816,12]
[421796248,1778170250000,-5000.0,0.00036762,10]
[421796251,1778170250000,-5000.0,0.0003679,10]
[421796252,1778170250000,-5000.0,0.00036812,10]
[421796250,1778170250000,-500.0,0.00036781,120]
[421796249,1778170250000,-5000.0,0.00036781,10]
[421796247,1778170250000,-500.0,0.00036751,120]
[421796243,1778170250000,-249.0,0.00036738,2]
[421796246,1778170250000,-206.0,0.00036751,120]
[421796245,1778170250000,-25000.0,0.00036747,10]
[421796273,1778170250000,-1000.0,0.00036973,60]
[421796259,1778170250000,-150.0,0.00036855,7]
[421796274,1778170250000,-2080.17592889,0.00036999,4]
[421796256,1778170250000,-5000.0,0.00036843,10]
[421796279,1778170250000,-469.32,0.00037,30]
[421796275,1778170250000,-275.44852741,0.00036999,4]
[421796307,1778170250000,-374111.86042853,0.00037055,2]
[421796306,1778170250000,-567.673,0.00037055,120]
[421796305,1778170250000,-500.0,0.00037055,120]
[421796299,1778170250000,-500.0,0.00037055,120]
[421796303,1778170250000,-500.0,0.00037055,120]
[421796301,1778170250000,-500.0,0.00037055,120]
[421796302,1778170250000,-500.0,0.00037055,120]
[421796304,1778170250000,-500.0,0.00037055,120]
[421796298,1778170250000,-875.62203,0.00037055,85]
[421796297,1778170250000,-875.62204,0.00037055,85]
[421796296,1778170250000,-280.66942888,0.00037055,7]
[421796295,1778170250000,-154.22364052,0.00037055,7]
[421796294,1778170250000,-1534.0,0.00037055,7]
[421796293,1778170250000,-235.0,0.00037055,7]
[421796300,1778170250000,-500.0,0.00037055,120]
[421796291,1778170250000,-153.0,0.00037055,7]
[421796278,1778170250000,-570.407597,0.00037,30]
[421796292,1778170250000,-153.0,0.00037055,7]
[421796276,1778170250000,-2000.0,0.00037,120]
[421796277,1778170250000,-1000.0,0.00037,120]
[421796280,1778170250000,-2097.39,0.00037,14]
[421796283,1778170250000,-150.0,0.00037011,7]
[421796282,1778170250000,-207.9261601,0.00037,10]
[421796281,1778170250000,-200.0,0.00037,10]
[421796285,1778170250000,-632448.5646896,0.00037052,2]
[421796286,1778170250000,-150.0,0.00037054,120]
[421796287,1778170250000,-212.39795071,0.00037055,2]
[421796288,1778170250000,-153.0,0.00037055,7]
[421796290,1778170250000,-153.0,0.00037055,7]
[421796289,1778170250000,-153.0,0.00037055,7]
[421796284,1778170250000,-1000.0,0.00037026,60]
[421796314,1778170251000,-0.5215238,0.00023184,7]
[421796320,1778170251000,-3569.79643987,0.00034139,2]
[421796319,1778170251000,-157.0,0.00033158,30]
[421796322,1778170251000,-2118923.88203662,0.00037055,2]
[421796318,1778170251000,-157.0,0.00032158,30]
[421796316,1778170251000,-129.21499557,0.00023184,7]
[421796308,1778170251000,-500.0,0.00022636,7]
[421796313,1778170251000,-500.0,0.0002291,7]
[421796312,1778170251000,-132305.85306251,0.00037055,2]
[421796311,1778170251000,-523165.04955032,0.00037055,2]
[421796309,1778170251000,-80.99067045,0.00037055,2]
[421796310,1778170251000,-389513.8607415,0.00037055,2]
[421796317,1778170251000,-10946.92497386,0.0002781,2]
[421796315,1778170251000,-336.2844519,0.00023184,7]
[421796324,1778170251000,-883.32876101,0.0003707,2]
[421796321,1778170251000,-157.0,0.00034158,30]
[421796327,1778170251000,-500.0,0.0003707,2]
[421796323,1778170251000,-397513.43496904,0.00037055,2]
[421796339,1778170251000,-387465.74652266,0.00037093,2]
[421796338,1778170251000,-1581.0,0.00037091,11]
[421796337,1778170251000,-163.0,0.00037091,11]
[421796336,1778170251000,-1581.0,0.00037091,11]
[421796334,1778170251000,-185.0,0.00037091,11]
[421796332,1778170251000,-90580.35010624,0.0003709,2]
[421796335,1778170251000,-2306.0,0.00037091,11]
[421796333,1778170251000,-1263.84679502,0.00037091,2]
[421796330,1778170251000,-152.0,0.00037088,4]
[421796329,1778170251000,-152.0,0.00037088,9]
[421796326,1778170251000,-1100.0,0.0003707,2]
[421796328,1778170251000,-994.55208895,0.00037077,2]
[421796325,1778170251000,-700.0,0.0003707,2]
[421796331,1778170251000,-578.08731306,0.0003709,2]
[421796349,1778170252000,-59334.17472074,0.00037122,2]
[421796353,1778170252000,-506.0,0.00031995,30]
[421796350,1778170252000,-1263.84679502,0.00037128,2]
[421796351,1778170252000,-925599.88848424,0.00037145,2]
[421796348,1778170252000,-157.0,0.00035158,30]
[421796345,1778170252000,-25997.70702036,0.00037122,2]
[421796340,1778170252000,-51163.41627648,0.00037093,2]
[421796346,1778170252000,-621.0,0.00027397,10]
[421796344,1778170252000,-2306.0,0.00037101,11]
[421796342,1778170252000,-1881.48563273,0.000371,120]
[421796343,1778170252000,-282.325115,0.000371,10]
[421796341,1778170252000,-221.44,0.00037096,120]
[421796352,1778170252000,-390.0,0.00031995,30]
[421796347,1778170252000,-13645.09,0.00027397,10]
[421796354,1778170252000,-152.0,0.00032001,7]
[421796361,1778170252000,-1000.0,0.00035193,2]
[421796357,1778170252000,-6815.41897386,0.00029128,2]
[421796369,1778170252000,-859.7812,0.00037145,2]
[421796370,1778170252000,-8600.16096363,0.00037145,2]
[421796355,1778170252000,-8882.46007633,0.00037145,2]
[421796368,1778170252000,-498.0,0.00035293,30]
[421796366,1778170252000,-157.0,0.0002,2]
[421796365,1778170252000,-27152.30629263,0.00037145,2]
[421796367,1778170252000,-1666.0,0.00034,2]
[421796363,1778170252000,-157.0,0.00036158,30]
[421796359,1778170252000,-55011.24002231,0.00033918,2]
[421796358,1778170252000,-152.0,0.00032001,7]
[421796360,1778170252000,-293.0,0.00035168,30]
[421796362,1778170252000,-485.0,0.00035293,30]
[421796356,1778170252000,-4131.506,0.00029128,2]
[421796364,1778170252000,-3569.79643987,0.0003646,2]
[421796374,1778170876000,-87.19,0.0002,2]
[421796373,1778170876000,-155.81,0.0002,2]
[421796375,1778170877000,-68.62,0.0002,2]
[421796379,1778171298000,1000.0,0.00025347,120]
[421796383,1778171437000,-364.38,0.0002,2]
[421796385,1778171437000,-158.0,0.0002,2]
[421796384,1778171437000,-166.0,0.0002,2]
[421796389,1778171437000,-405.0,0.0002,2]
[421796388,1778171437000,-405.0,0.0002,2]
[421796387,1778171437000,-406.0,0.0002,2]
[421796392,1778171437000,-402.0,0.0002,2]
[421796386,1778171437000,-403.0,0.0002,2]
[421796390,1778171437000,-404.0,0.0002,2]
[421796391,1778171437000,-412.0,0.0002,2]
[421796393,1778171438000,-405.0,0.0002,2]
[421796395,1778171438000,-412.0,0.0002,2]
[421796394,1778171438000,-402.0,0.0002,2]
[421796397,1778171438000,-408.0,0.0002,2]
[421796398,1778171438000,-409.0,0.0002,2]
[421796400,1778171438000,-405.0,0.0002,2]
[421796399,1778171438000,-406.0,0.0002,2]
[421796402,1778171438000,-410.0,0.0002,2]
[421796401,1778171438000,-399.0,0.0002,2]
[421796404,1778171438000,-399.0,0.0002,2]
[421796396,1778171438000,-407.0,0.0002,2]
[421796403,1778171438000,-413.0,0.0002,2]
[421796405,1778171438000,-400.0,0.0002,2]
[421796414,1778171438000,-1000.0,0.00020002,2]
[421796413,1778171438000,-1000.0,0.00020002,2]
[421796412,1778171438000,-1000.0,0.00020002,2]
[421796410,1778171438000,-1000.0,0.00020002,2]
[421796411,1778171438000,-1000.0,0.00020002,2]
[421796409,1778171438000,-1000.0,0.00020002,2]
[421796408,1778171438000,-1000.0,0.00020002,2]
[421796407,1778171438000,-500.0,0.00020002,2]
[421796406,1778171438000,-440.15156876,0.0002,2]
[421796423,1778171439000,-620.79,0.00020006,2]
[421796427,1778171439000,-407.0,0.0002009,2]
[421796424,1778171439000,-411.0,0.00020007,2]
[421796422,1778171439000,-1000.0,0.00020006,2]
[421796425,1778171439000,-410.0,0.00020016,2]
[421796421,1778171439000,-1000.0,0.00020006,2]
[421796417,1778171439000,-1000.0,0.00020006,2]
[421796418,1778171439000,-1000.0,0.00020006,2]
[421796419,1778171439000,-1000.0,0.00020006,2]
[421796416,1778171439000,-1000.0,0.00020006,2]
[421796415,1778171439000,-500.0,0.00020006,2]
[421796426,1778171439000,-400.0,0.00020038,2]
[421796420,1778171439000,-1000.0,0.00020006,2]
[421796430,1778171439000,-153.0,0.00020556,2]
[421796428,1778171439000,-404.0,0.00020211,2]
[421796444,1778171439000,-1000.0,0.00022638,2]
[421796443,1778171439000,-279.16676386,0.00022407,2]
[421796442,1778171439000,-158.0,0.00022,2]
[421796441,1778171439000,-433.0,0.00022,2]
[421796431,1778171439000,-301.0,0.00020556,2]
[421796438,1778171439000,-401.0,0.00021257,2]
[421796439,1778171439000,-399.0,0.00021363,2]
[421796440,1778171439000,-243.0,0.00022,2]
[421796437,1778171439000,-158.0,0.00021,2]
[421796435,1778171439000,-243.0,0.00021,2]
[421796434,1778171439000,-166.0,0.00021,2]
[421796433,1778171439000,-399.0,0.00020556,2]
[421796432,1778171439000,-407.0,0.00020556,2]
[421796429,1778171439000,-150.0,0.00020556,2]
[421796436,1778171439000,-433.0,0.00021,2]
[421796445,1778171440000,-1000.0,0.00022638,2]
[421796446,1778171440000,-1000.0,0.00022638,2]
[421796448,1778171440000,-1000.0,0.00022638,2]
[421796450,1778171440000,-1000.0,0.00022638,2]